[Event "44th Chess Olympiad Women 2022"]
[Site "Chennai"]
[Date "2022.08.01"]
[Round "4.26"]
[White "Perez, Dalila"]
[Black "Trippold, Denise"]
[Result "1/2-1/2"]
[WhiteElo "1799"]
[BlackElo "2151"]
[Annotator "ChessBase"]
[PlyCount "193"]
[EventDate "2022.??.??"]
[TimeControl "60"]

1. d4 {[%emt 0:00:07]} Nf6 {[%emt 0:00:18]} 2. Nf3 {[%emt 0:00:06]} e6 {
[%emt 0:00:13]} 3. g3 {[%emt 0:00:37]} d5 {[%emt 0:00:22]} 4. Bg2 {[%emt 0:00:
00]} b5 {[%emt 0:09:14]} 5. O-O {[%emt 0:06:54]} Nbd7 {[%emt 0:00:00]} 6. a4 {
[%emt 0:04:39]} b4 {[%emt 0:00:00]} 7. c4 {[%emt 0:00:42]} bxc3 {[%emt 0:00:00]
} 8. bxc3 {[%emt 0:00:41]} Ba6 {[%emt 0:00:02]} 9. Ba3 {[%emt 0:04:01]} Bd6 {
[%emt 0:06:45]} 10. Nbd2 {[%emt 0:06:42]} O-O {[%emt 0:05:27]} 11. Re1 {
[%emt 0:01:52]} Rb8 {[%emt 0:02:48]} 12. Qc1 {[%emt 0:08:21]} Qe7 {[%emt 0:00:
00]} 13. e4 {[%emt 0:26:16]} Nxe4 {[%emt 0:08:33]} 14. Nxe4 {[%emt 0:00:41]}
dxe4 {[%emt 0:03:30]} 15. Bxd6 {[%emt 0:02:05]} cxd6 {[%emt 0:01:03]} 16. Rxe4
{[%emt 0:00:05]} Rfc8 {[%emt 0:03:49]} 17. Qc2 {[%emt 0:12:24]} h6 {[%emt 0:00:
00]} 18. Rh4 {[%emt 0:00:48]} Bb7 {[%emt 0:12:51]} 19. Rc1 {[%emt 0:08:10]} Bd5
{[%emt 0:02:24]} 20. Qe2 {[%emt 0:03:44]} Bxf3 {[%emt 0:03:28]} 21. Qxf3 {
[%emt 0:03:45]} d5 {[%emt 0:00:48]} 22. Qe3 {[%emt 0:02:14]} Qg5 {[%emt 0:00:
00]} 23. Rf4 {[%emt 0:01:57]} Rb3 {[%emt 0:02:06]} 24. h4 {[%emt 0:03:12]} Qd8
{[%emt 0:00:02]} 25. Rf3 {[%emt 0:00:43]} Nb6 {[%emt 0:01:11]} 26. Qf4 {
[%emt 0:00:52]} Qc7 {[%emt 0:00:29]} 27. Qd2 {[%emt 0:00:39]} Nc4 {[%emt 0:00:
00]} 28. Qd1 {[%emt 0:00:54]} Rcb8 {[%emt 0:02:03]} 29. Bf1 {[%emt 0:00:23]}
Qa5 {[%emt 0:02:09]} 30. Bd3 {[%emt 0:00:59]} Nb2 {[%emt 0:00:17]} 31. Qc2 {
[%emt 0:00:27]} Qxa4 {[%emt 0:00:50]} 32. Kg2 {[%emt 0:00:46]} Nxd3 {[%emt 0:
00:00]} 33. Qxd3 {[%emt 0:00:08]} Rc8 {[%emt 0:00:45]} 34. Qd1 {[%emt 0:00:26]}
Qb5 {[%emt 0:00:33]} 35. g4 {[%emt 0:00:34]} Rb2 {[%emt 0:00:32]} 36. Ra1 {
[%emt 0:00:36]} a5 {[%emt 0:00:22]} 37. Re3 {[%emt 0:00:31]} g6 {[%emt 0:00:36]
} 38. Qc1 {[%emt 0:00:48]} Ra8 {[%emt 0:00:25]} 39. Rf3 {[%emt 0:00:23]} Kg7 {
[%emt 0:00:36]} 40. Qf4 {[%emt 0:00:16]} Ra7 {[%emt 0:00:30]} 41. Qf6+ {
[%emt 0:04:21]} Kh7 {[%emt 0:02:01]} 42. h5 {[%emt 0:00:49]} g5 {[%emt 0:02:52]
} 43. Qe5 {[%emt 0:03:31]} Qe8 {[%emt 0:15:58]} 44. Qe3 {[%emt 0:10:22]} Qe7 {
[%emt 0:03:55]} 45. Qc1 {[%emt 0:02:29]} Rbb7 {[%emt 0:00:56]} 46. Ra4 {
[%emt 0:04:02]} Kg7 {[%emt 0:01:29]} 47. Qa1 {[%emt 0:00:32]} Qc7 {[%emt 0:00:
00]} 48. Qa2 {[%emt 0:02:43]} Qb6 {[%emt 0:00:14]} 49. Qe2 {[%emt 0:01:22]} Qd6
{[%emt 0:01:05]} 50. Qa2 {[%emt 0:01:21]} Qb6 {[%emt 0:01:08]} 51. Qe2 {
[%emt 0:00:32]} Qb5 {[%emt 0:01:15]} 52. Qe5+ {[%emt 0:00:12]} Kh7 {[%emt 0:00:
00]} 53. Rf6 {[%emt 0:02:13]} Ra8 {[%emt 0:00:02]} 54. Ra3 {[%emt 0:01:03]} a4
{[%emt 0:00:27]} 55. c4 {[%emt 0:01:21]} Qc6 {[%emt 0:01:22]} 56. c5 {[%emt 0:
00:00]} Qc7 {[%emt 0:01:02]} 57. Qe3 {[%emt 0:00:18]} Rb4 {[%emt 0:00:28]} 58.
Rf3 {[%emt 0:00:44]} Ra7 {[%emt 0:00:18]} 59. Qc3 {[%emt 0:00:18]} Rc4 {
[%emt 0:00:19]} 60. Qd3+ {[%emt 0:00:36]} Kg7 {[%emt 0:00:04]} 61. Qe3 {
[%emt 0:00:39]} Rb7 {[%emt 0:00:30]} 62. Qd2 {[%emt 0:00:26]} Rb1 {[%emt 0:00:
00]} 63. Rac3 {[%emt 0:01:06]} Rcb4 {[%emt 0:01:03]} 64. Qe3 {[%emt 0:00:44]}
Ra1 {[%emt 0:01:16]} 65. Qe5+ {[%emt 0:00:21]} Qxe5 {[%emt 0:00:01]} 66. dxe5 {
[%emt 0:00:05]} Rb7 {[%emt 0:00:55]} 67. c6 {[%emt 0:00:44]} Rc7 {[%emt 0:00:
00]} 68. Rfd3 {[%emt 0:00:40]} Rb1 {[%emt 0:00:43]} 69. Rd4 {[%emt 0:00:38]}
Rb6 {[%emt 0:00:41]} 70. Rxa4 {[%emt 0:00:08]} Rbxc6 {[%emt 0:00:05]} 71. Re3 {
[%emt 0:00:52]} Rc4 {[%emt 0:00:16]} 72. Rxc4 {[%emt 0:00:09]} Rxc4 {[%emt 0:
00:00]} 73. Kf3 {[%emt 0:00:38]} Rf4+ {[%emt 0:00:20]} 74. Kg3 {[%emt 0:00:04]}
f6 {[%emt 0:00:20]} 75. exf6+ {[%emt 0:00:50]} Kxf6 {[%emt 0:00:04]} 76. Rf3 {
[%emt 0:00:40]} e5 {[%emt 0:02:03]} 77. Ra3 {[%emt 0:00:15]} d4 {[%emt 0:00:36]
} 78. Ra6+ {[%emt 0:00:15]} Ke7 {[%emt 0:00:21]} 79. Rxh6 {[%emt 0:00:34]} d3 {
[%emt 0:00:48]} 80. Rh7+ {[%emt 0:00:42]} Ke6 {[%emt 0:00:17]} 81. Rh6+ {
[%emt 0:00:42]} Kd5 {[%emt 0:00:17]} 82. Rh8 {[%emt 0:00:15]} Rd4 {[%emt 0:00:
00]} 83. Kf3 {[%emt 0:00:54]} Rf4+ {[%emt 0:00:33]} 84. Ke3 {[%emt 0:00:15]}
Rxg4 {[%emt 0:00:26]} 85. Kxd3 {[%emt 0:00:42]} Rh4 {[%emt 0:00:25]} 86. h6 {
[%emt 0:00:41]} Rh3+ {[%emt 0:00:02]} 87. Ke2 {[%emt 0:00:08]} Ke6 {[%emt 0:00:
00]} 88. h7 {[%emt 0:00:46]} Kf7 {[%emt 0:00:04]} 89. Rg8 {[%emt 0:00:08]} Rxh7
{[%emt 0:00:09]} 90. Rxg5 {[%emt 0:00:02]} Kf6 {[%emt 0:00:05]} 91. Rg3 {
[%emt 0:00:08]} Ra7 {[%emt 0:00:20]} 92. Rb3 {[%emt 0:00:23]} Kf5 {[%emt 0:00:
00]} 93. Ke3 {[%emt 0:00:40]} Rh7 {[%emt 0:00:06]} 94. Rb4 {[%emt 0:00:13]}
Rh3+ {[%emt 0:00:05]} 95. Ke2 {[%emt 0:00:08]} e4 {[%emt 0:00:06]} 96. Rb8 {
[%emt 0:00:40]} Ra3 {[%emt 0:00:16]} 97. Rf8+ {[%emt 0:00:08]} 1/2-1/2

[Event "44th Chess Olympiad Women 2022"]
[Site "Chennai"]
[Date "2022.08.01"]
[Round "4.27"]
[White "Asgharzadeh, Mitra"]
[Black "Ogbiyoyo, Perpetual Eloho"]
[Result "1-0"]
[WhiteElo "1988"]
[BlackElo "1886"]
[Annotator "NA RC"]
[PlyCount "122"]
[EventDate "2022.??.??"]
[TimeControl "60"]

1. d4 {[%emt 0:00:18]} Nf6 {[%emt 0:00:11]} 2. Nf3 {[%emt 0:00:07]} b6 {
[%emt 0:00:12]} 3. e3 {[%emt 0:00:07]} Bb7 {[%emt 0:00:17]} 4. Bd3 {[%emt 0:00:
00]} g6 {[%emt 0:00:38]} 5. O-O {[%emt 0:00:18]} Bg7 {[%emt 0:00:16]} 6. c4 {
[%emt 0:00:23]} O-O {[%emt 0:02:44]} 7. Nc3 {[%emt 0:00:26]} d5 {[%emt 0:00:15]
} 8. b3 {[%emt 0:13:26]} c5 {[%emt 0:06:37]} 9. Bb2 {[%emt 0:02:57]} cxd4 {
[%emt 0:00:48]} 10. exd4 {[%emt 0:00:24]} e6 {[%emt 0:00:25]} 11. Rc1 {[%emt 0:
00:00]} Nc6 {[%emt 0:02:16]} 12. Ba3 {[%emt 0:04:54]} Re8 {[%emt 0:00:19]} 13.
Re1 {[%emt 0:11:43]} a6 {[%emt 0:01:31]} 14. cxd5 {[%emt 0:09:13]} Nxd5 {
[%emt 0:02:50]} 15. Nxd5 {[%emt 0:03:26]} exd5 {[%emt 0:00:52]} 16. Rxe8+ {
[%emt 0:02:14]} Qxe8 {[%emt 0:00:42]} 17. Bf1 {[%emt 0:00:39]} Qe6 {[%emt 0:00:
00]} 18. Qd2 {[%emt 0:01:26]} Re8 {[%emt 0:01:36]} 19. Qf4 {[%emt 0:03:41]} Qd7
{[%emt 0:02:17]} 20. Bd3 {[%emt 0:01:34]} h6 {[%emt 0:06:24]} 21. h4 {[%emt 0:
00:00]} h5 {[%emt 0:01:32]} 22. Bd6 {[%emt 0:07:50]} Qg4 {[%emt 0:07:30]} 23.
Qxg4 {[%emt 0:11:46]} hxg4 {[%emt 0:00:09]} 24. Ne5 {[%emt 0:00:10]} Nxd4 {
[%emt 0:08:38]} 25. Nxf7 {[%emt 0:03:30]} Bc6 {[%emt 0:10:46]} 26. Ng5 {
[%emt 0:01:15]} Bb5 {[%emt 0:01:22]} 27. Rd1 {[%emt 0:02:52]} Bxd3 {[%emt 0:00:
00]} 28. Rxd3 {[%emt 0:00:01]} Nf5 {[%emt 0:00:25]} 29. Bf4 {[%emt 0:02:23]}
Re1+ {[%emt 0:01:04]} 30. Kh2 {[%emt 0:00:00]} d4 {[%emt 0:00:37]} 31. g3 {
[%emt 0:00:57]} Re2 {[%emt 0:02:02]} 32. Kg1 {[%emt 0:01:45]} Bf8 {[%emt 0:00:
00]} 33. Rd2 {[%emt 0:01:24]} Re1+ {[%emt 0:01:02]} 34. Kg2 {[%emt 0:00:07]}
Bb4 {[%emt 0:00:21]} 35. Rd3 {[%emt 0:01:15]} Bc3 {[%emt 0:01:16]} 36. f3 {
[%emt 0:01:47]} Re2+ {[%emt 0:08:37]} 37. Kf1 {[%emt 0:00:18]} gxf3 {[%emt 0:
00:00]} 38. Nxf3 {[%emt 0:00:19]} Rxa2 {[%emt 0:00:29]} 39. g4 {[%emt 0:00:31]}
Ra1+ {[%emt 0:01:33]} 40. Kg2 {[%emt 0:00:38]} Ne7 {[%emt 0:00:23]} 41. Nxd4 {
[%emt 0:31:04]} Nd5 {[%emt 0:31:04]} 42. Bg3 {[%emt 0:00:00]} Rd1 {[%emt 0:00:
00]} 43. Rxd1 {[%emt 0:00:00]} Ne3+ {[%emt 0:00:00]} 44. Kf3 {[%emt 0:00:00]}
Nxd1 {[%emt 0:00:00]} 45. Ke4 {[%emt 0:00:00]} Kf7 {[%emt 0:00:00]} 46. Kd3 {
[%emt 0:00:00]} b5 {[%emt 0:00:00]} 47. Nf3 {[%emt 0:00:00]} Bg7 {[%emt 0:00:
00]} 48. Ng5+ {[%emt 0:00:00]} Ke7 {[%emt 0:00:00]} 49. Ne4 {[%emt 0:00:00]}
Nb2+ {[%emt 0:00:00]} 50. Kc2 {[%emt 0:00:00]} Ke6 {[%emt 0:00:00]} 51. Bf4 {
[%emt 0:00:00]} Kd5 {[%emt 0:00:00]} 52. Ng5 {[%emt 0:00:00]} a5 {[%emt 0:00:
00]} 53. Bc1 {[%emt 0:00:00]} Nc4 {[%emt 0:00:06]} 54. bxc4+ {[%emt 0:00:00]}
Kxc4 {[%emt 0:00:10]} 55. Ne6 {[%emt 0:00:01]} Be5 {[%emt 0:00:17]} 56. h5 {
[%emt 0:01:28]} gxh5 {[%emt 0:00:16]} 57. gxh5 {[%emt 0:00:01]} b4 {[%emt 0:00:
00]} 58. Bb2 {[%emt 0:04:03]} Bd6 {[%emt 0:03:39]} 59. h6 {[%emt 0:00:30]} a4 {
[%emt 0:00:07]} 60. h7 {[%emt 0:00:13]} a3 {[%emt 0:00:55]} 61. h8=Q {[%emt 0:
00:00]} Kd5 {[%emt 0:01:02]} 1-0

[Event "44th Chess Olympiad Women 2022"]
[Site "Chennai"]
[Date "2022.08.01"]
[Round "4.27"]
[White "Enomah Emmanuella Trust"]
[Black "Alinasab, Mobina"]
[Result "0-1"]
[WhiteElo "1901"]
[BlackElo "2364"]
[Annotator "TA"]
[PlyCount "68"]
[EventDate "2022.??.??"]
[TimeControl "60"]

{[%evp 9,68,8,2,2,8,7,7,0,26,20,28,17,35,18,43,25,55,58,77,16,29,0,22,22,29,14,
55,5,20,0,0,0,3,0,19,0,9,0,0,0,0,0,0,0,0,0,0,-20,-18,-17,-16,-17,-13,-15,-15,
-24,-12,-21,0,0,0]} 1. c4 {[%emt 0:00:04]} b6 {[%emt 0:01:17]} 2. e4 {[%emt 0:
00:00]} Bb7 {[%emt 0:01:11]} 3. Nc3 {[%emt 0:00:07]} c5 {[%emt 0:01:13]} 4. g3
{[%emt 0:00:47]} Nc6 {[%emt 0:00:55]} 5. Bg2 {[%emt 0:00:22]} g6 {[%emt 0:00:
00]} 6. Nge2 {[%emt 0:01:07] A34: Symmetrical English: 2 Nc3, lines with ...d5.
} Bg7 {[%emt 0:00:51] Against d4} 7. d3 {[%emt 0:01:08]} d6 {[%emt 0:01:47]} 8.
Be3 {[%emt 0:00:28]} Nf6 {[%emt 0:02:55]} 9. h3 {[%emt 0:00:18]} Rc8 {[%emt 0:
00:00]} 10. Qd2 {[%emt 0:00:34] [#]} h5 $146 {[%emt 0:10:14]} ({Predecessor:} 
10... a6 11. O-O O-O 12. Bh6 Bxh6 13. Qxh6 b5 14. Qd2 Qa5 15. f4 Ba8 16. Rad1
Nd7 {0-1 (61) Volosin,V (2340)-Horvath,T (2395) Eger 1997}) 11. O-O {[%emt 0:
00:00]} Qd7 {[%emt 0:04:19]} 12. f4 {[%emt 0:01:39]} O-O {[%emt 0:09:13]} 13.
f5 {[%emt 0:01:57]} e6 {[%emt 0:01:17]} 14. fxg6 {[%emt 0:02:09]} (14. Bg5 $16)
14... fxg6 $11 {[%emt 0:00:14]} 15. Rf2 {[%emt 0:04:41]} Ne7 {[%emt 0:04:00]}
16. Raf1 {[%emt 0:09:43]} Nh7 {[%emt 0:11:02]} 17. Rxf8+ {[%emt 0:06:41]} Nxf8
{[%emt 0:03:27]} 18. Bh6 {[%emt 0:05:10]} (18. h4 $14) 18... Nc6 {[%emt 0:00:
00]} 19. Bxg7 {[%emt 0:06:10]} Qxg7 {[%emt 0:01:23]} 20. h4 {[%emt 0:07:54]}
Rd8 {[%emt 0:02:40]} 21. Nf4 {[%emt 0:03:29][%cal Ye2f4,Yf4h3,Yh3g5]} Nd4 {
[%emt 0:01:04]} 22. Kh2 {[%emt 0:03:26]} Bc8 {[%emt 0:02:47]} 23. Nh3 {[%emt 0:
04:42]} Nh7 {[%emt 0:01:13]} 24. Ng5 {[%emt 0:04:00]} Nf6 {[%emt 0:00:00]} 25.
Bh3 {[%emt 0:03:00]} Rf8 {[%emt 0:01:10]} 26. Kg2 {[%emt 0:01:58]} Nh7 {
[%emt 0:08:11]} 27. Rxf8+ {[%emt 0:04:30]} Qxf8 {[%emt 0:01:10]} 28. Qf2 {
[%emt 0:03:41]} Nxg5 {[%emt 0:04:31]} 29. Qxf8+ {[%emt 0:03:38]} Kxf8 {[%emt 0:
00:00]} 30. hxg5 {[%emt 0:00:06] KBN-KBN} Ke7 {[%emt 0:01:11]} 31. Kf2 {
[%emt 0:01:33]} Nc6 {[%emt 0:07:44] next ...Ne5 is good for Black.} 32. Ne2 {
[%emt 0:09:48]} Kf7 {[%emt 0:00:14]} 33. Ke3 {[%emt 0:00:32]} Ne7 {[%emt 0:00:
00]} 34. Nc3 {[%emt 0:01:09]} Bd7 {[%emt 0:00:20] Weighted Error Value:
White=0.12 (very precise) /Black=0.10 (very precise) . Loss on time!?} 0-1

[Event "44th Chess Olympiad Women 2022"]
[Site "Chennai"]
[Date "2022.08.01"]
[Round "4.27"]
[White "Mahdian, Anousha"]
[Black "Ofowino, Toritsemuwa"]
[Result "1-0"]
[WhiteElo "2161"]
[BlackElo "1870"]
[Annotator "NA RC"]
[PlyCount "103"]
[EventDate "2022.??.??"]
[TimeControl "60"]

1. d4 {[%emt 0:00:03]} d5 {[%emt 0:00:20]} 2. c4 {[%emt 0:00:06]} c6 {[%emt 0:
00:00]} 3. cxd5 {[%emt 0:00:06]} cxd5 {[%emt 0:00:11]} 4. Bf4 {[%emt 0:00:07]}
Nf6 {[%emt 0:01:03]} 5. e3 {[%emt 0:00:14]} Qb6 {[%emt 0:05:10]} 6. Nc3 {
[%emt 0:21:43]} Qxb2 {[%emt 0:06:31]} 7. Qc1 {[%emt 0:01:35]} Qxc1+ {[%emt 0:
00:00]} 8. Rxc1 {[%emt 0:00:05]} Bd7 {[%emt 0:04:06]} 9. Nf3 {[%emt 0:01:58]}
e6 {[%emt 0:00:37]} 10. Ne5 {[%emt 0:06:16]} Bb4 {[%emt 0:00:52]} 11. Bd3 {
[%emt 0:14:54]} Nc6 {[%emt 0:19:17]} 12. Nxd7 {[%emt 0:08:07]} Kxd7 {[%emt 0:
00:00]} 13. Ke2 {[%emt 0:02:27]} Nh5 {[%emt 0:00:51]} 14. Be5 {[%emt 0:01:23]}
f6 {[%emt 0:00:13]} 15. Bg3 {[%emt 0:00:04]} Nxg3+ {[%emt 0:00:08]} 16. hxg3 {
[%emt 0:00:03]} f5 {[%emt 0:00:18]} 17. Na4 {[%emt 0:01:20]} Rac8 {[%emt 0:00:
00]} 18. Rb1 {[%emt 0:02:59]} Rc7 {[%emt 0:02:48]} 19. g4 {[%emt 0:01:06]} g6 {
[%emt 0:04:03]} 20. gxf5 {[%emt 0:07:56]} gxf5 {[%emt 0:01:11]} 21. Rh5 {
[%emt 0:12:07]} h6 {[%emt 0:17:19]} 22. g4 {[%emt 0:03:32]} fxg4 {[%emt 0:00:
00]} 23. Rg1 {[%emt 0:00:01]} Ne7 {[%emt 0:07:37]} 24. Nb2 {[%emt 0:08:17]} Ba3
{[%emt 0:01:04]} 25. Nd1 {[%emt 0:04:03]} Rc1 {[%emt 0:02:57]} 26. Bb5+ {
[%emt 0:00:50]} Kd6 {[%emt 0:00:28]} 27. Ba4 {[%emt 0:00:06]} b5 {[%emt 0:00:
00]} 28. Bxb5 {[%emt 0:00:31]} Rc2+ {[%emt 0:00:07]} 29. Kf1 {[%emt 0:00:28]}
Rxa2 {[%emt 0:02:05]} 30. Rxg4 {[%emt 0:00:54]} Rb8 {[%emt 0:04:06]} 31. Be2 {
[%emt 0:01:05]} Rb1 {[%emt 0:00:58]} 32. Rxh6 {[%emt 0:00:48]} Raa1 {[%emt 0:
00:00]} 33. Rf4 {[%emt 0:00:31]} Rxd1+ {[%emt 0:02:16]} 34. Bxd1 {[%emt 0:00:
00]} Rxd1+ {[%emt 0:00:07]} 35. Ke2 {[%emt 0:00:03]} Rb1 {[%emt 0:00:58]} 36.
Rff6 {[%emt 0:00:12]} Rb2+ {[%emt 0:01:30]} 37. Kf3 {[%emt 0:00:54]} a5 {
[%emt 0:00:18]} 38. Rxe6+ {[%emt 0:00:03]} Kd7 {[%emt 0:00:06]} 39. Ra6 {
[%emt 0:00:43]} Bb4 {[%emt 0:00:08]} 40. Rhf6 {[%emt 0:01:03]} Be1 {[%emt 0:00:
00]} 41. Ra7+ {[%emt 0:04:50]} Ke8 {[%emt 0:00:16]} 42. Kg2 {[%emt 0:09:10]}
Bb4 {[%emt 0:00:46]} 43. Kh3 {[%emt 0:04:06]} Rc2 {[%emt 0:01:18]} 44. Kg4 {
[%emt 0:04:44]} Be1 {[%emt 0:08:49]} 45. Re6 {[%emt 0:04:21]} Bb4 {[%emt 0:00:
00]} 46. f4 {[%emt 0:00:46]} Kf7 {[%emt 0:00:59]} 47. f5 {[%emt 0:01:13]} Rf2 {
[%emt 0:00:43]} 48. Rh6 {[%emt 0:02:37]} Kg7 {[%emt 0:03:30]} 49. Rb6 {[%emt 0:
00:00]} Kg8 {[%emt 0:03:05]} 50. f6 {[%emt 0:00:41]} Ng6 {[%emt 0:00:54]} 51.
Rg7+ {[%emt 0:00:14]} Kf8 {[%emt 0:00:08]} 52. Rb8# {[%emt 0:00:18]} 1-0

[Event "44th Chess Olympiad Women 2022"]
[Site "Chennai"]
[Date "2022.08.01"]
[Round "4.27"]
[White "Suleiman Azumi Ayisha"]
[Black "Zahedifar, Anahita"]
[Result "0-1"]
[WhiteElo "1833"]
[BlackElo "2160"]
[Annotator "NA RC"]
[PlyCount "74"]
[EventDate "2022.??.??"]
[TimeControl "60"]

1. d4 {[%emt 0:00:47]} d5 {[%emt 0:00:06]} 2. c4 {[%emt 0:00:06]} e6 {[%emt 0:
00:00]} 3. e3 {[%emt 0:04:34]} Nf6 {[%emt 0:02:25]} 4. Nf3 {[%emt 0:00:50]} a6
{[%emt 0:04:07]} 5. Nc3 {[%emt 0:02:29]} dxc4 {[%emt 0:00:24]} 6. Bxc4 {
[%emt 0:00:19]} b5 {[%emt 0:00:19]} 7. Bd3 {[%emt 0:01:19]} c5 {[%emt 0:02:45]}
8. O-O {[%emt 0:13:43]} Bb7 {[%emt 0:02:42]} 9. Re1 {[%emt 0:05:06]} Nc6 {
[%emt 0:05:20]} 10. dxc5 {[%emt 0:03:32]} Bxc5 {[%emt 0:00:12]} 11. a3 {
[%emt 0:04:26]} Rc8 {[%emt 0:04:12]} 12. Ne4 {[%emt 0:01:38]} Be7 {[%emt 0:00:
00]} 13. Ng3 {[%emt 0:15:04]} O-O {[%emt 0:03:23]} 14. Qe2 {[%emt 0:00:13]} Ng4
{[%emt 0:05:32]} 15. Rd1 {[%emt 0:10:09]} Qb6 {[%emt 0:03:33]} 16. Nd4 {
[%emt 0:06:35]} Nce5 {[%emt 0:09:01]} 17. Bxh7+ {[%emt 0:02:36]} Kxh7 {[%emt 0:
00:00]} 18. f4 {[%emt 0:00:01]} g6 {[%emt 0:04:28]} 19. h3 {[%emt 0:02:17]}
Nxe3 {[%emt 0:04:13]} 20. Bxe3 {[%emt 0:00:04]} Nc4 {[%emt 0:00:16]} 21. Bf2 {
[%emt 0:01:50]} Rfd8 {[%emt 0:04:22]} 22. Nb3 {[%emt 0:09:51]} Qc7 {[%emt 0:00:
00]} 23. Bd4 {[%emt 0:01:53]} a5 {[%emt 0:07:32]} 24. a4 {[%emt 0:06:05]} bxa4
{[%emt 0:06:00]} 25. Rxa4 {[%emt 0:00:02]} Ba6 {[%emt 0:00:46]} 26. Qf2 {
[%emt 0:03:19]} Rb8 {[%emt 0:06:30]} 27. Nd2 {[%emt 0:03:01]} Rxd4 {[%emt 0:00:
00]} 28. Kh1 {[%emt 0:01:03]} Rxd2 {[%emt 0:00:53]} 29. Rxd2 {[%emt 0:00:52]}
Nxd2 {[%emt 0:00:05]} 30. Qxd2 {[%emt 0:00:39]} Bb4 {[%emt 0:00:20]} 31. Qf2 {
[%emt 0:00:53]} Qc1+ {[%emt 0:00:12]} 32. Kh2 {[%emt 0:00:14]} Bc5 {[%emt 0:00:
00]} 33. Ne2 {[%emt 0:00:54]} Qc2 {[%emt 0:02:07]} 34. Qh4+ {[%emt 0:00:27]}
Kg7 {[%emt 0:00:24]} 35. f5 {[%emt 0:00:34]} exf5 {[%emt 0:00:36]} 36. Nc3 {
[%emt 0:00:21]} Bd6+ {[%emt 0:00:14]} 37. Kh1 {[%emt 0:00:40]} Qc1+ {[%emt 0:
00:00]} 0-1

[Event "44th Chess Olympiad Women 2022"]
[Site "Chennai"]
[Date "2022.08.01"]
[Round "4.28"]
[White "Antonio, Renelsa Taiane"]
[Black "Mordido, Kylen Joy"]
[Result "1/2-1/2"]
[WhiteElo "1471"]
[BlackElo "2023"]
[Annotator "NA RC"]
[PlyCount "49"]
[EventDate "2022.??.??"]
[TimeControl "60"]

1. d4 {[%emt 0:00:07]} Nf6 {[%emt 0:00:50]} 2. Nc3 {[%emt 0:00:18]} d5 {
[%emt 0:01:37]} 3. Bf4 {[%emt 0:00:39]} g6 {[%emt 0:01:52]} 4. e3 {[%emt 0:00:
00]} Bg7 {[%emt 0:01:41]} 5. h4 {[%emt 0:00:53]} h5 {[%emt 0:05:21]} 6. Bd3 {
[%emt 0:03:48]} O-O {[%emt 0:02:22]} 7. Qe2 {[%emt 0:03:59]} c5 {[%emt 0:02:16]
} 8. Qd2 {[%emt 0:07:31]} cxd4 {[%emt 0:03:35]} 9. exd4 {[%emt 0:04:23]} Nc6 {
[%emt 0:01:12]} 10. Nf3 {[%emt 0:01:30]} Ng4 {[%emt 0:03:20]} 11. Ne2 {[%emt 0:
00:00]} Qb6 {[%emt 0:04:31]} 12. c3 {[%emt 0:00:32]} e5 {[%emt 0:06:02]} 13.
Nxe5 {[%emt 0:15:56]} Ncxe5 {[%emt 0:01:34]} 14. Bxe5 {[%emt 0:00:17]} Bxe5 {
[%emt 0:03:32]} 15. f3 {[%emt 0:00:14]} Re8 {[%emt 0:02:43]} 16. fxg4 {[%emt 0:
00:00]} Bg3+ {[%emt 0:01:53]} 17. Kd1 {[%emt 0:00:57]} Bxg4 {[%emt 0:01:40]}
18. Kc2 {[%emt 0:00:47]} Bc7 {[%emt 0:04:09]} 19. Nf4 {[%emt 0:05:10]} Qd6 {
[%emt 0:14:32]} 20. Rhf1 {[%emt 0:03:29]} Re7 {[%emt 0:05:27]} 21. g3 {[%emt 0:
00:00]} Qd7 {[%emt 0:08:58]} 22. Rae1 {[%emt 0:04:16]} Rae8 {[%emt 0:02:09]}
23. Rxe7 {[%emt 0:01:38]} Rxe7 {[%emt 0:00:08]} 24. Re1 {[%emt 0:00:50]} Bxf4 {
[%emt 0:04:07]} 25. Rxe7 {[%emt 0:00:18]} 1/2-1/2